bitfinex-derivatives/quotes_BTCF0:USTF0_20250119
["timestamp","ask_amount","ask_price","bid_price","bid_amount"]
[1737328846453,0.41046,100820.0,100810.0,5.4e-07]
[1737328846658,0.049675,100790.0,100780.0,0.00148802]
[1737328846858,0.410475,100790.0,100780.0,0.00148802]
[1737328847059,8.934e-05,100790.0,100780.0,0.17797656]
[1737328847575,0.3608,100830.0,100780.0,1.37309656]
[1737328847860,0.410451,100840.0,100810.0,0.17797656]
[1737328848062,0.410442,100860.0,100830.0,0.17797656]
[1737328848464,0.3608,100840.0,100810.0,0.17797656]
[1737328848658,0.3608,100840.0,100830.0,0.17797656]
[1737328848861,0.410438,100870.0,100830.0,0.53877656]
[1737328849063,0.3608,100850.0,100830.0,0.17797656]
[1737328849366,0.3608,100890.0,100840.0,0.7216]
[1737328849569,0.3608,100890.0,100870.0,0.17797656]
[1737328849770,0.1,100900.0,100890.0,0.049625]
[1737328849961,0.1,100900.0,100890.0,0.58840156]
[1737328849962,0.00052001,100900.0,100890.0,0.58840156]
[1737328850164,0.3608,100930.0,100890.0,0.83877656]
[1737328850363,0.410402,100940.0,100920.0,0.17797656]
[1737328850672,0.3608,100930.0,100920.0,0.17797656]
[1737328850860,0.049613,100920.0,100900.0,0.17797656]
[1737328851069,0.049625,100890.0,100860.0,0.049639]
[1737328851269,0.3608,100880.0,100850.0,0.53877656]
[1737328851570,0.3608,100890.0,100870.0,0.58840956]
[1737328851772,0.049621,100900.0,100880.0,0.04963]
[1737328851968,0.3608,100940.0,100880.0,0.3608]
[1737328852175,0.049625,100890.0,100870.0,1.04423074]
[1737328852479,0.3608,100880.0,100850.0,0.58841856]
[1737328852676,0.3608,100880.0,100860.0,0.049639]
[1737328852989,0.410419,100910.0,100870.0,0.3608]
[1737328853279,0.410419,100910.0,100880.0,0.049629]
[1737328853280,0.3608,100910.0,100880.0,0.049629]
[1737328853485,0.3608,100910.0,100890.0,0.17797656]
[1737328853779,1.35207656,100960.0,100910.0,0.049615]
[1737328853780,0.3608,100930.0,100910.0,0.049615]
[1737328854079,0.3608,100930.0,100900.0,0.53384]
[1737328854375,0.410412,100920.0,100900.0,0.53384]
[1737328854982,0.3608,100920.0,100900.0,0.53384]
[1737328855288,0.3608,100930.0,100900.0,0.53384]
[1737328855474,0.410413,100920.0,100900.0,0.53384]
[1737328855670,0.049613,100920.0,100900.0,0.53384]
[1737328855971,0.049613,100920.0,100900.0,0.944259]
[1737328856172,0.3608,100940.0,100900.0,0.944259]
[1737328856377,0.049615,100910.0,100900.0,0.53384]
[1737328856574,0.049615,100910.0,100870.0,0.3608]
[1737328856575,0.3608,100910.0,100870.0,0.3608]
[1737328856883,0.049617,100910.0,100880.0,0.410427]
[1737328857079,0.3608,100930.0,100900.0,0.3608]
[1737328857280,0.3608,100930.0,100910.0,0.410414]
[1737328857577,0.3608,100930.0,100900.0,0.049619]
[1737328857578,0.049606,100930.0,100900.0,0.049619]
[1737328857775,0.049615,100920.0,100890.0,0.3608]
[1737328858172,0.3608,100930.0,100910.0,0.410415]
[1737328858378,0.049602,100940.0,100920.0,0.410411]
[1737328858578,1.219,100960.0,100920.0,0.410408]
[1737328858877,0.049597,100950.0,100920.0,0.3608]
[1737328859183,0.3608,100980.0,100930.0,0.3608]
[1737328859370,0.049589,100970.0,100950.0,0.3608]
[1737328859680,0.049591,100960.0,100940.0,0.4104]
[1737328859891,0.3608,100960.0,100930.0,0.3608]
[1737328860077,0.049597,100950.0,100930.0,0.3608]
[1737328860276,0.53877656,100970.0,100930.0,0.3608]
[1737328860576,0.049601,100940.0,100920.0,0.943929]
[1737328860971,0.049595,100960.0,100920.0,0.410407]
[1737328861278,0.47248054,101000.0,100950.0,0.7216]
[1737328861478,0.47248054,101000.0,100960.0,0.3608]
[1737328861479,0.049585,100980.0,100960.0,0.3608]
[1737328861782,0.52205254,101000.0,100980.0,0.049581]
[1737328861973,0.049576,100990.0,100960.0,0.89424]
[1737328862178,0.049584,100980.0,100960.0,0.94383]
[1737328862374,0.049585,100980.0,100960.0,0.89424]
[1737328862685,0.1,101000.0,100970.0,0.3608]
[1737328862887,0.1,101000.0,100980.0,0.3608]
[1737328863099,0.1,101000.0,100990.0,0.58835256]
[1737328863582,1e-06,101000.0,100990.0,0.88835256]
[1737328863776,1e-06,101000.0,100990.0,0.90323256]
[1737328863972,0.049543,101060.0,100990.0,0.85365656]
[1737328864186,0.049543,101060.0,101040.0,0.410349]
[1737328864381,0.049554,101040.0,101020.0,0.943801]
[1737328864689,0.049554,101040.0,101020.0,0.53344]
[1737328864690,0.049557,101030.0,101020.0,0.53344]
[1737328865280,0.049563,101020.0,101010.0,0.3608]
[1737328865583,0.3608,101030.0,101000.0,0.3608]
[1737328865783,0.3608,101030.0,101010.0,0.3608]
[1737328866093,0.3608,101040.0,101020.0,0.3608]
[1737328866277,0.049557,101030.0,101010.0,0.410366]
[1737328866585,0.049564,101020.0,101000.0,0.41037]
[1737328866884,0.049581,100980.0,100970.0,0.36088426]
[1737328867092,0.3608,101000.0,100970.0,0.53886082]
[1737328867382,0.3608,101020.0,100990.0,0.3608]
[1737328867585,0.049572,101000.0,100980.0,0.04958]
[1737328867787,0.3608,101020.0,100970.0,0.41046926]
[1737328867788,0.049581,100990.0,100970.0,0.41046926]
[1737328867982,0.049581,100980.0,100970.0,8.426e-05]
[1737328868181,0.410381,100980.0,100970.0,8.426e-05]
[1737328868383,0.049581,100980.0,100970.0,8.426e-05]
[1737328868586,0.8102,101030.0,100990.0,0.049574]
[1737328868785,0.859758,101030.0,101010.0,0.410365]
[1737328868987,0.00052001,101040.0,101010.0,0.049565]
[1737328869182,0.049561,101030.0,101010.0,0.049565]
[1737328869379,0.049561,101030.0,101020.0,0.3608]
[1737328869784,0.049561,101030.0,101010.0,0.049565]
[1737328870085,0.8102,101060.0,101020.0,0.3608]
[1737328870286,0.859742,101060.0,101020.0,0.410361]
[1737328870487,0.049558,101030.0,101010.0,0.049566]
[1737328870687,1.39851856,101060.0,101010.0,0.53877656]
[1737328870688,0.049552,101040.0,101010.0,0.53877656]
[1737328870880,0.8102,101060.0,101030.0,0.049553]
[1737328870881,0.049548,101050.0,101030.0,0.049553]
[1737328871186,0.049554,101040.0,101030.0,0.3608]
[1737328871378,0.049554,101040.0,101010.0,0.89376]
[1737328871379,0.049561,101030.0,101010.0,0.89376]
[1737328871583,0.3608,101040.0,101010.0,0.89376]
[1737328871584,0.049561,101020.0,101010.0,0.89376]
[1737328871986,0.049569,101010.0,101000.0,0.3608]
[1737328872286,0.049579,100990.0,100980.0,0.3608]
[1737328872683,0.049581,100980.0,100970.0,0.89384426]
[1737328873297,0.049581,100980.0,100970.0,0.36088426]
[1737328873593,0.3608,101150.0,101020.0,0.3608]
[1737328873893,0.049455,101240.0,101200.0,0.049471]
[1737328874188,0.4202,101290.0,101230.0,0.7216]
[1737328874389,0.049434,101280.0,101270.0,0.3608]
[1737328874593,0.049434,101280.0,101270.0,0.7216]
[1737328874781,0.05140872,101280.0,101270.0,0.3608]
[1737328875186,0.049439,101270.0,101250.0,0.3608]
[1737328875390,0.05140872,101280.0,101260.0,0.3608]
[1737328875584,0.049439,101270.0,101250.0,0.3608]
[1737328875786,0.049452,101250.0,101240.0,0.3608]
[1737328876385,0.049454,101240.0,101230.0,0.3608]
[1737328876586,0.049459,101230.0,101220.0,0.3608]
[1737328876790,0.049459,101230.0,101210.0,0.3608]
[1737328877001,0.049459,101230.0,101220.0,0.3608]
[1737328877493,0.04946,101230.0,101210.0,0.3608]
[1737328877690,0.049459,101230.0,101210.0,0.3608]
[1737328877886,0.049448,101260.0,101220.0,0.3708]
[1737328878087,0.3608,101280.0,101250.0,0.53877656]
[1737328878285,0.3608,101290.0,101270.0,0.3608]
[1737328878489,0.149428,101300.0,101270.0,0.410238]
[1737328878791,0.1,101300.0,101280.0,0.049434]
[1737328878991,0.1,101300.0,101280.0,0.410234]
[1737328879191,0.1,101300.0,101290.0,0.53877656]
[1737328879388,0.1,101300.0,101290.0,0.58820556]
[1737328879584,0.1,101300.0,101290.0,0.59820556]
[1737328879985,0.1,101300.0,101290.0,0.54877656]
[1737328880388,0.1,101300.0,101280.0,0.3708]
[1737328880693,0.049434,101280.0,101260.0,0.54877656]
[1737328880894,0.049434,101280.0,101260.0,0.3708]
[1737328881291,0.049434,101280.0,101240.0,0.03078856]
[1737328881292,0.049439,101270.0,101240.0,0.03078856]
[1737328881490,0.3608,101260.0,101230.0,0.71026293]
[1737328881792,0.3608,101260.0,101240.0,0.049453]
[1737328881994,0.410244,101260.0,101230.0,0.71026293]
[1737328882200,0.410244,101260.0,101230.0,0.75972093]
[1737328882492,0.3608,101290.0,101250.0,0.17797656]
[1737328882698,0.1,101300.0,101270.0,0.53877656]
[1737328882885,0.410232,101290.0,101240.0,0.3608]
[1737328883089,0.3608,101290.0,101260.0,0.049442]
[1737328883290,0.3608,101280.0,101240.0,0.54075206]
[1737328883490,0.410241,101270.0,101240.0,0.0514265]
[1737328883995,0.049449,101250.0,101240.0,0.0019755]
[1737328884292,0.58822556,101250.0,101240.0,0.0019755]
[1737328884496,0.049454,101240.0,101230.0,3.8e-07]
[1737328884904,0.3608,101250.0,101230.0,3.8e-07]
[1737328885087,0.049454,101240.0,101230.0,3.8e-07]
[1737328885293,0.410254,101240.0,101230.0,3.8e-07]
[1737328885893,0.410254,101240.0,101200.0,0.00345822]
[1737328885894,0.710254,101240.0,101200.0,0.00345822]
[1737328886094,0.410268,101210.0,101200.0,0.00345822]
[1737328886302,0.41038097,101210.0,101200.0,0.00345822]
[1737328886492,0.3608,101250.0,101200.0,0.84075284]
[1737328886688,0.3608,101260.0,101200.0,0.84075284]
[1737328886689,0.3608,101270.0,101240.0,0.17797656]
[1737328886995,0.1,101300.0,101260.0,0.17797656]
[1737328887200,0.1,101300.0,101280.0,0.22740856]
[1737328887394,0.410229,101290.0,101260.0,0.22741956]
[1737328887591,0.3608,101290.0,101270.0,0.049438]
[1737328887787,0.3608,101290.0,101260.0,0.17797656]
[1737328887997,0.3608,101280.0,101250.0,0.17797656]
[1737328888197,0.410241,101270.0,101250.0,0.17797656]
[1737328888400,0.3608,101280.0,101250.0,0.17797656]
[1737328888599,0.410234,101290.0,101270.0,0.17797656]
[1737328888899,0.23211521,101290.0,101270.0,0.17797656]
[1737328889088,0.1,101300.0,101270.0,0.53877656]
[1737328889288,0.04943,101290.0,101280.0,0.3608]
[1737328889596,0.3608,101310.0,101280.0,0.17797656]
[1737328889799,0.3608,101290.0,101260.0,0.17797656]
[1737328889997,0.049439,101270.0,101260.0,0.17797656]
[1737328890199,0.049444,101260.0,101240.0,0.5883262]
[1737328890699,0.049444,101260.0,101240.0,0.1780732]
[1737328890700,0.049449,101250.0,101240.0,0.1780732]
[1737328891690,0.049449,101250.0,101240.0,9.664e-05]
[1737328892002,0.410249,101250.0,101240.0,6.4e-07]
[1737328892194,0.049449,101250.0,101240.0,6.4e-07]
[1737328892390,0.3608,101260.0,101240.0,0.1779772]
[1737328892593,0.049449,101250.0,101240.0,6.4e-07]
[1737328892991,0.349449,101250.0,101240.0,6.4e-07]
[1737328893196,0.36091574,101250.0,101240.0,6.4e-07]
[1737328893402,0.00011574,101250.0,101240.0,0.5387772]
[1737328893599,0.41036474,101250.0,101240.0,6.4e-07]
[1737328893801,0.04956474,101250.0,101240.0,6.4e-07]
[1737328894005,0.410234,101280.0,101240.0,0.5387772]
[1737328894006,0.3608,101280.0,101240.0,0.5387772]
[1737328894204,0.3608,101310.0,101270.0,0.3608]
[1737328894408,0.049429,101290.0,101280.0,0.17797656]
[1737328894706,0.049429,101290.0,101270.0,0.410238]
[1737328895003,0.56877656,101340.0,101270.0,0.410238]
[1737328895004,0.1,101400.0,101310.0,0.3608]
[1737328895208,0.14989601,101400.0,101390.0,0.17797656]
[1737328895402,0.149376,101400.0,101380.0,0.3608]
[1737328895602,0.049395,101360.0,101350.0,0.53877656]
[1737328895806,0.049395,101360.0,101330.0,0.53877656]
[1737328896101,0.049393,101370.0,101340.0,0.410204]
[1737328896300,0.049387,101380.0,101360.0,0.3608]
[1737328896507,0.00197297,101370.0,101360.0,0.410193]
[1737328896709,0.00197297,101370.0,101360.0,0.410195]
[1737328897009,0.00197297,101370.0,101360.0,0.3608]
[1737328897204,0.05136297,101370.0,101360.0,0.3608]
[1737328897410,0.00197297,101370.0,101360.0,0.410195]
[1737328898913,0.00197297,101370.0,101360.0,0.3608]
[1737328899104,0.05136297,101370.0,101360.0,0.3608]
[1737328900208,0.00197297,101370.0,101360.0,0.410195]
[1737328900712,0.049386,101380.0,101360.0,0.410195]
[1737328900911,0.049384,101390.0,101370.0,0.53877656]
[1737328901207,0.049386,101380.0,101370.0,0.3608]
[1737328901408,0.049386,101380.0,101370.0,0.7216]
[1737328901911,0.04939,101370.0,101350.0,0.3608]
[1737328902111,0.3608,101390.0,101360.0,0.3608]
[1737328902303,0.04939,101370.0,101360.0,0.3608]
[1737328902809,0.049383,101390.0,101360.0,0.410194]
[1737328903009,0.049381,101390.0,101370.0,0.3608]
[1737328903203,0.049381,101390.0,101380.0,0.3608]
[1737328903415,0.1,101400.0,101390.0,0.049381]
[1737328903712,0.049357,101440.0,101390.0,0.58815756]
[1737328904008,0.049357,101440.0,101430.0,0.7216]
[1737328904716,0.04935,101460.0,101430.0,0.94893656]
[1737328904900,0.049351,101450.0,101440.0,0.3608]
[1737328905101,0.3608,101470.0,101440.0,0.3608]
[1737328905419,0.049345,101470.0,101460.0,0.3608]
[1737328905710,0.049351,101450.0,101440.0,0.3608]
[1737328905912,0.049351,101450.0,101430.0,0.3608]
[1737328906115,0.049361,101430.0,101420.0,0.3608]
[1737328906413,0.049366,101420.0,101410.0,0.53877656]
[1737328906602,0.049361,101430.0,101410.0,0.53877656]
[1737328906804,0.3608,101440.0,101410.0,0.3608]
[1737328907011,0.049357,101440.0,101400.0,0.3608]
[1737328907211,0.3608,101420.0,101390.0,0.3608]
[1737328907604,0.049363,101430.0,101410.0,0.3608]
[1737328907808,0.049363,101430.0,101420.0,0.3608]
[1737328908009,0.049363,101430.0,101410.0,0.3608]
[1737328908204,0.58812856,101450.0,101410.0,0.3608]
[1737328908414,0.3608,101430.0,101390.0,0.3608]
[1737328908620,0.049381,101390.0,101380.0,0.36090648]
[1737328909313,0.049381,101390.0,101380.0,0.00010648]
[1737328909510,0.049381,101390.0,101380.0,0.36090648]
[1737328910014,0.049369,101420.0,101390.0,0.049381]
[1737328910216,0.049366,101420.0,101410.0,0.3608]
[1737328910513,0.049366,101420.0,101400.0,0.3608]
[1737328910712,0.049366,101420.0,101410.0,0.3608]
[1737328910908,0.049361,101430.0,101400.0,0.3608]
[1737328911110,0.049381,101390.0,101380.0,0.00010648]
[1737328911305,0.770981,101390.0,101380.0,0.00010648]
[1737328912117,0.04939,101370.0,101360.0,4.6e-07]
[1737328912321,0.049405,101340.0,101330.0,0.29023244]
[1737328912518,0.049415,101320.0,101310.0,0.34827893]
[1737328912715,0.771015,101320.0,101310.0,0.34827893]
[1737328912915,0.94899156,101320.0,101300.0,0.61395513]
[1737328913117,0.41022,101310.0,101290.0,0.43078393]
[1737328913314,0.049429,101290.0,101250.0,1.12068538]
[1737328913520,0.410244,101260.0,101250.0,1.13974193]
[1737328913716,0.27512733,101260.0,101240.0,0.87151322]
[1737328913910,0.00010804,101250.0,101240.0,1.30154126]
[1737328914116,0.049429,101290.0,101260.0,0.049443]
[1737328914318,0.049429,101290.0,101260.0,0.60799505]
[1737328914518,0.410229,101290.0,101260.0,0.60799505]
[1737328914721,0.7876,101320.0,101280.0,0.3608]
[1737328914927,0.3608,101320.0,101290.0,0.3608]
[1737328915118,0.410219,101320.0,101290.0,0.049428]
[1737328915428,0.3608,101330.0,101290.0,0.3608]
[1737328915429,0.37568624,101330.0,101290.0,0.3608]
[1737328915625,0.410212,101330.0,101290.0,0.410226]
[1737328915926,0.410212,101330.0,101300.0,0.049424]
[1737328916120,0.3608,101320.0,101300.0,0.049424]
[1737328916318,0.410221,101310.0,101280.0,0.58820856]
[1737328916517,0.3608,101310.0,101290.0,0.049429]
[1737328916714,0.44422794,101350.0,101300.0,0.58820156]
[1737328917021,0.410214,101330.0,101300.0,0.22740156]
[1737328917229,0.3608,101330.0,101300.0,0.049425]
[1737328917417,0.3608,101330.0,101310.0,0.049419]
[1737328917618,0.14798725,101350.0,101320.0,0.53877656]
[1737328917816,0.3608,101340.0,101320.0,0.22739156]
[1737328918018,0.3608,101340.0,101310.0,0.3608]
[1737328918221,0.410211,101330.0,101300.0,0.22739856]
[1737328918626,0.3608,101340.0,101300.0,0.53877656]
[1737328918929,0.3608,101320.0,101300.0,0.01977183]
[1737328919120,0.04941,101330.0,101300.0,0.60797039]
[1737328919321,0.04941,101330.0,101300.0,0.58819856]
[1737328919626,0.04941,101330.0,101300.0,0.60796297]
[1737328919828,0.3608,101350.0,101320.0,0.17797656]
[1737328920128,0.3608,101360.0,101340.0,0.17797656]
[1737328920320,0.410196,101360.0,101340.0,0.17797656]
[1737328920527,0.3608,101380.0,101340.0,0.53877656]
[1737328920528,0.3758485,101380.0,101340.0,0.53877656]
[1737328920716,0.049391,101370.0,101340.0,0.22738056]
[1737328920921,0.0150485,101380.0,101350.0,0.410196]
[1737328921124,0.049392,101370.0,101340.0,0.17797656]
[1737328921423,0.049397,101360.0,101340.0,0.58818156]
[1737328921627,0.771,101350.0,101340.0,0.17797656]
[1737328921823,0.049405,101340.0,101320.0,0.17809764]
[1737328922030,0.41021,101330.0,101320.0,0.00012108]
[1737328922422,0.04941,101330.0,101320.0,0.00012108]
[1737328922728,0.41021,101330.0,101320.0,0.00012108]
[1737328922919,0.09822222,101390.0,101350.0,0.049398]
[1737328923115,0.08342794,101390.0,101380.0,0.410186]
[1737328923524,0.08342794,101390.0,101380.0,0.770986]
[1737328923725,0.1,101400.0,101390.0,0.049381]
[1737328923928,0.049373,101410.0,101390.0,0.17797656]
[1737328924116,0.410176,101400.0,101390.0,0.17797656]
[1737328924322,0.049362,101430.0,101390.0,0.53877656]
[1737328924517,0.56978268,101440.0,101400.0,0.3608]
[1737328924518,0.049367,101420.0,101400.0,0.3608]
[1737328924724,0.25833968,101440.0,101420.0,0.049365]
[1737328924930,0.19425458,101440.0,101430.0,0.53877656]
[1737328925120,0.55505458,101440.0,101400.0,0.9034964]
[1737328925322,0.11232494,101410.0,101400.0,0.41029384]
[1737328925535,0.30889359,101420.0,101410.0,0.049371]
[1737328925733,0.30889359,101420.0,101410.0,0.410171]
[1737328925918,0.19425458,101440.0,101430.0,0.049361]
[1737328926118,0.19425458,101440.0,101430.0,0.94893756]
[1737328926319,0.19425458,101440.0,101430.0,0.58813756]
[1737328926524,0.19425458,101440.0,101430.0,0.53877656]
[1737328926823,0.19425458,101440.0,101430.0,0.22733756]
[1737328927020,0.19425458,101440.0,101430.0,0.53877656]
[1737328927220,0.049356,101440.0,101430.0,0.17797656]
[1737328927421,0.3608,101450.0,101410.0,0.53877656]
[1737328927630,0.049356,101440.0,101430.0,0.17797656]
[1737328928125,0.410151,101450.0,101430.0,0.53877656]
[1737328928330,0.049351,101450.0,101440.0,0.3608]
[1737328928532,0.049351,101450.0,101430.0,0.58813756]
[1737328928728,0.049356,101440.0,101430.0,0.17797656]
[1737328928929,0.3608,101450.0,101430.0,0.17797656]
[1737328929229,0.3608,101460.0,101430.0,0.17797656]
[1737328929230,0.049348,101460.0,101440.0,0.049355]
[1737328929532,0.410148,101460.0,101440.0,0.58813256]
[1737328929719,0.3608,101470.0,101450.0,0.3608]
[1737328929922,0.55505458,101480.0,101470.0,0.049342]
[1737328929923,0.19425458,101480.0,101470.0,0.049342]
[1737328930123,0.19425458,101480.0,101470.0,0.410142]
[1737328930321,0.22200524,101490.0,101470.0,0.410142]
[1737328930528,0.22200524,101490.0,101470.0,0.17797656]
[1737328930727,0.049337,101480.0,101470.0,0.17797656]
[1737328931334,0.0973569,101490.0,101470.0,0.58811856]
[1737328931921,0.049337,101480.0,101470.0,0.17797656]
[1737328932122,0.0480239,101490.0,101450.0,0.58812756]
[1737328932123,0.049343,101470.0,101450.0,0.58812756]
[1737328932431,0.049347,101460.0,101440.0,0.049356]
[1737328932728,0.08412828,101490.0,101450.0,0.53877656]
[1737328933033,0.08412828,101490.0,101470.0,0.58811856]
[1737328933223,0.13346228,101490.0,101470.0,0.22731856]
[1737328933429,0.13346228,101490.0,101470.0,0.58811856]
[1737328933830,0.08412828,101490.0,101470.0,0.17797656]
[1737328934035,0.13346128,101490.0,101470.0,0.17797656]
[1737328934329,0.13346128,101490.0,101480.0,0.3608]
[1737328934634,0.08412828,101490.0,101480.0,0.410137]
[1737328934832,0.1,101500.0,101480.0,0.410137]
[1737328935134,0.049318,101520.0,101500.0,0.049324]
[1737328935327,0.049318,101520.0,101490.0,0.53877656]
[1737328935735,0.58280524,101540.0,101510.0,0.53877656]
[1737328935930,0.58280524,101540.0,101510.0,0.17797656]
[1737328936131,0.049317,101520.0,101490.0,0.22730756]
[1737328936336,0.049323,101510.0,101490.0,0.58810756]
[1737328936529,0.049327,101500.0,101490.0,0.17797656]
[1737328936825,0.049332,101500.0,101470.0,0.53886498]
[1737328937031,0.049332,101490.0,101480.0,0.3608]
[1737328937231,0.049332,101490.0,101470.0,0.17806498]
[1737328937426,0.049337,101480.0,101470.0,0.17806498]
[1737328937936,0.049337,101480.0,101470.0,8.842e-05]
[1737328938236,0.410137,101480.0,101470.0,8.842e-05]
[1737328938425,0.049337,101480.0,101470.0,8.842e-05]
[1737328938626,0.410137,101480.0,101470.0,8.842e-05]
[1737328939434,0.049337,101480.0,101470.0,8.842e-05]
[1737328939738,0.410137,101480.0,101470.0,8.842e-05]
[1737328940833,0.049348,101460.0,101440.0,0.3608]
[1737328941028,0.410151,101450.0,101440.0,0.01542954]
[1737328941334,0.410151,101450.0,101420.0,0.00147854]
[1737328941335,0.049361,101430.0,101420.0,0.00147854]
[1737328941631,0.3608,101440.0,101420.0,0.01690878]
[1737328941832,8.842e-05,101430.0,101420.0,0.4517632]
[1737328942037,8.842e-05,101430.0,101420.0,0.09096329]
[1737328942239,8.842e-05,101430.0,101420.0,0.10330704]
[1737328942437,8.842e-05,101430.0,101420.0,0.4838535]
[1737328943237,0.049347,101460.0,101440.0,0.049354]
[1737328943431,0.37600706,101480.0,101450.0,0.17797656]
[1737328943739,0.37600706,101480.0,101460.0,0.3608]
[1737328943947,0.049343,101470.0,101450.0,0.22732556]
[1737328944147,0.049347,101460.0,101450.0,0.2057448]
[1737328944437,0.049347,101460.0,101450.0,0.2057429]
[1737328944641,0.01520706,101480.0,101450.0,0.5665429]
[1737328944848,0.049328,101500.0,101470.0,0.53877656]
[1737328945037,0.04984001,101520.0,101500.0,0.049327]
[1737328945341,0.049317,101530.0,101500.0,0.049327]
[1737328945735,0.049319,101520.0,101500.0,0.049327]
[1737328946440,0.410113,101530.0,101510.0,0.049321]
[1737328946736,0.049319,101520.0,101500.0,0.049326]
[1737328946938,0.049319,101520.0,101500.0,0.0770806]
[1737328947142,0.37580593,101540.0,101500.0,0.3885546]
[1737328947343,0.42511693,101540.0,101510.0,0.410119]
[1737328947538,0.37580593,101540.0,101510.0,0.410119]
[1737328947751,0.049313,101530.0,101510.0,0.410119]
[1737328947944,0.049313,101530.0,101510.0,0.06473786]
[1737328948146,0.410113,101530.0,101510.0,0.22729556]
[1737328948350,0.049309,101550.0,101530.0,0.049317]
[1737328948644,0.049309,101550.0,101520.0,0.049321]
[1737328948645,0.049313,101540.0,101520.0,0.049321]
[1737328949038,0.049317,101530.0,101520.0,0.049321]
[1737328949439,0.3608,101540.0,101510.0,0.17797656]
[1737328949440,0.3608,101540.0,101510.0,0.53877656]
[1737328949640,0.3608,101540.0,101520.0,0.04932]
[1737328949641,0.410113,101540.0,101520.0,0.04932]
[1737328949943,0.410113,101540.0,101530.0,0.049317]
[1737328950150,0.3608,101540.0,101530.0,0.22729356]
[1737328950737,0.42516748,101550.0,101530.0,0.22729356]
[1737328950738,0.37585848,101550.0,101530.0,0.22729356]
[1737328950938,0.16806974,101570.0,101540.0,0.7216]
[1737328951147,0.16806974,101570.0,101560.0,0.91021544]
[1737328951448,0.21736774,101570.0,101560.0,0.17797656]
[1737328951648,0.710102,101570.0,101520.0,0.53877656]
[1737328951949,0.7834,101570.0,101530.0,0.3608]
[1737328952249,0.7834,101570.0,101550.0,0.17797656]
[1737328952447,0.4226,101570.0,101550.0,0.53877656]
[1737328952648,0.471899,101570.0,101550.0,0.22728356]
[1737328952950,0.52886974,101580.0,101560.0,0.410103]
[1737328953146,0.16806974,101580.0,101570.0,0.53877656]
[1737328953449,0.049289,101590.0,101570.0,0.58807456]
[1737328953751,0.28304868,101600.0,101570.0,0.17797656]
[1737328953940,0.28304868,101600.0,101590.0,0.58806456]
[1737328954349,0.26806974,101600.0,101590.0,0.58806456]
[1737328954544,0.26806974,101600.0,101590.0,0.22726456]
[1737328954948,0.26806974,101600.0,101590.0,0.58806456]
[1737328955343,0.1,101600.0,101590.0,0.58806456]
[1737328955853,0.41007,101630.0,101610.0,0.049277]
[1737328956050,0.04927,101630.0,101620.0,0.3608]
[1737328956350,0.16806974,101640.0,101630.0,0.049269]
[1737328956543,0.16806974,101640.0,101630.0,0.58804556]
[1737328956940,0.16806974,101640.0,101630.0,0.17797656]
[1737328957149,0.41006,101650.0,101630.0,0.17797656]
[1737328957345,0.41006,101650.0,101620.0,0.31494526]
[1737328957546,0.42501239,101650.0,101630.0,0.17797656]
[1737328957751,0.049265,101640.0,101620.0,0.17797656]
[1737328957949,0.049265,101640.0,101620.0,0.22724956]
[1737328958650,0.37575239,101650.0,101640.0,0.049264]
[1737328958854,0.13985797,101670.0,101660.0,0.049254]
[1737328959052,0.13985797,101670.0,101660.0,0.58624978]
[1737328959255,0.16806974,101680.0,101660.0,0.94704978]
[1737328959449,0.16806974,101680.0,101660.0,0.58624978]
[1737328959658,0.21731674,101680.0,101660.0,0.22544978]
[1737328959865,0.57811674,101680.0,101660.0,0.22544978]
[1737328960253,0.04925,101670.0,101660.0,0.17530114]
[1737328960451,0.04925,101670.0,101650.0,0.049259]
[1737328960852,0.049254,101660.0,101640.0,0.58625978]
[1737328961149,0.049267,101640.0,101620.0,0.58639336]
[1737328961354,0.049269,101630.0,101620.0,0.17632236]
[1737328961562,0.410069,101630.0,101620.0,0.00012658]
[1737328962263,0.410069,101630.0,101600.0,0.17619578]
[1737328962264,0.049274,101620.0,101600.0,0.17619578]
[1737328962453,0.3608,101620.0,101600.0,0.55239766]
[1737328962755,0.410079,101610.0,101600.0,0.01539953]
[1737328962956,0.3608,101630.0,101600.0,0.55473461]
[1737328963161,0.04926,101650.0,101620.0,0.17852508]
[1737328963162,0.410063,101650.0,101620.0,0.17852508]
[1737328963359,0.00011317,101640.0,101620.0,0.12925108]
[1737328963558,0.049274,101620.0,101610.0,0.12925108]
[1737328963858,0.04928,101610.0,101590.0,0.00147605]
[1737328964053,7.139e-05,101600.0,101590.0,0.05076105]
[1737328964256,7.139e-05,101600.0,101590.0,0.41156105]
[1737328964753,7.139e-05,101600.0,101590.0,0.42696613]
[1737328964953,7.139e-05,101600.0,101590.0,0.45161152]
[1737328965155,7.139e-05,101600.0,101590.0,0.42696613]
[1737328965853,0.049275,101620.0,101610.0,0.049279]
[1737328966157,0.049275,101620.0,101610.0,0.53933008]
[1737328966361,0.049275,101620.0,101610.0,0.3608]
[1737328966657,0.049275,101620.0,101590.0,0.36227605]
[1737328966658,0.049284,101600.0,101590.0,0.36227605]
[1737328966861,0.04933861,101600.0,101590.0,0.36227605]
[1737328967161,0.41013861,101600.0,101590.0,0.00147605]
[1737328967375,0.04933861,101600.0,101590.0,0.00147605]
[1737328967566,0.41013861,101600.0,101590.0,0.00147605]
[1737328967755,0.04933861,101600.0,101590.0,0.00147605]
[1737328968363,0.410084,101600.0,101590.0,0.00147605]
[1737328968561,0.049293,101580.0,101570.0,0.00011592]
[1737328968765,0.049302,101570.0,101530.0,0.3608]
[1737328969060,0.3608,101580.0,101560.0,0.049302]
[1737328969061,0.410094,101580.0,101560.0,0.049302]
[1737328969260,0.049302,101570.0,101550.0,0.049307]
[1737328969461,0.3608,101580.0,101560.0,0.49005108]
[1737328969671,8.39e-05,101570.0,101560.0,0.56401051]
[1737328969963,0.049285,101600.0,101590.0,0.049288]
[1737328970261,0.41008,101610.0,101600.0,0.049284]
[1737328970766,0.41016663,101610.0,101590.0,0.049286]
[1737328971066,0.04937063,101600.0,101590.0,0.049288]
[1737328971263,0.04937063,101600.0,101580.0,0.53934308]
[1737328971458,0.049297,101580.0,101550.0,0.49005108]